[Event "21st Sants Open 2019"]
[Site "Cotxeres de Sants"]
[Date "2019.08.27"]
[Round "5.19"]
[White "Garcia Martinez, Hector"]
[Black "Cabrera Marmol, Manuel"]
[Result "1-0"]
[ECO "C35"]
[WhiteElo "1547"]
[BlackElo "1537"]
[Annotator "NA"]
[PlyCount "81"]
[EventDate "2019.08.22"]
[EventType "swiss"]
[EventCountry "ESP"]
[SourceTitle "playchess.com"]
[Source "ChessBase"]
[SourceQuality "1"]
[TimeControl "40/5400+30:1800+30"]

1. e4 {[%emt 0:00:00]} e5 {[%emt 0:15:03]} 2. f4 {[%emt 0:00:00]} exf4 {[%emt 0:00:30]} 3. Nf3 {[%emt 0:00:00]} Be7 {[%emt 0:00:19]} 4. Nc3 {[%emt 0:00:00]} Bh4+ {[%emt 0:16:39]} 5. Ke2 {[%emt 0:00:00]} Be7 {[%emt 0:12:50]} 6. d4 {[%emt 0:01:58]} g5 {[%emt 0:03:18]} 7. h4 {[%emt 0:05:12]} b6 {[%emt 0:06:26]} 8. hxg5 {[%emt 0:07:12]} Bxg5 {[%emt 0:02:37]} 9. d5 {[%emt 0:01:00]} d6 {[%emt 0:08:00]} 10. g3 {[%emt 0:24:25]} Qf6 {[%emt 0:04:51]} 11. Qd4 {[%emt 0:08:35]} Qxd4 {[%emt 0:04:23]} 12. Nxd4 {[%emt 0:00:03]} Bf6 {[%emt 0:02:39]} 13. Ndb5 {[%emt 0:03:10]} Bg4+ {[%emt 0:06:07]} 14. Kf2 {[%emt 0:02:56]} Kd7 {[%emt 0:03:24]} 15. Bxf4 {[%emt 0:02:37]} Na6 {[%emt 0:01:10]} 16. Nxd6 {[%emt 0:03:34]} cxd6 {[%emt 0:02:48]} 17. Bxa6 {[%emt 0:00:04]} Bd4+ {[%emt 0:01:11]} 18. Kg2 {[%emt 0:01:19]} Nf6 {[%emt 0:01:41]} 19. Bb7 {[%emt 0:00:06]} Rag8 {[%emt 0:01:00]} 20. Bc6+ {[%emt 0:00:05]} Ke7 {[%emt 0:00:16]} 21. Nb5 {[%emt 0:01:48]} Bxb2 {[%emt 0:00:45]} 22. Bxd6+ {[%emt 0:00:37]} Kd8 {[%emt 0:00:26]} 23. Rab1 {[%emt 0:00:31]} a6 {[%emt 0:01:40]} 24. Rxb2 {[%emt 0:00:27]} axb5 {[%emt 0:00:04]} 25. Rxb5 {[%emt 0:00:31]} Nxe4 {[%emt 0:01:08]} 26. Be5 {[%emt 0:00:11]} f6 {[%emt 0:00:11]} 27. Bd4 {[%emt 0:00:55]} Bd7 {[%emt 0:00:40]} 28. Bxb6+ {[%emt 0:02:03]} Ke7 {[%emt 0:01:10]} 29. Bc7 {[%emt 0:04:45]} Bxc6 {[%emt 0:00:56]} 30. dxc6 {[%emt 0:00:05]} Rc8 {[%emt 0:01:28]} 31. Rb7 {[%emt 0:00:03]} Ke6 {[%emt 0:00:29]} 32. Re1 {[%emt 0:00:31]} f5 {[%emt 0:00:08]} 33. Rh1 {[%emt 0:03:38]} Kd5 {[%emt 0:00:21]} 34. Rh6 {[%emt 0:00:13]} Nc5 35. Rd6+ {[%emt 0:04:50]} Kc4 {[%emt 0:01:54]} 36. Ra7 {[%emt 0:00:11]} Ra8 {[%emt 0:00:30]} 37. Bb6 {[%emt 0:04:07]} Ne4 {[%emt 0:00:34]} 38. Rxa8 {[%emt 0:03:28]} Rxa8 {[%emt 0:00:04]} 39. Rd7 {[%emt 0:00:06]} Rc8 {[%emt 0:01:11]} 40. c7 {[%emt 0:00:00]} Kb5 {[%emt 0:00:00]} 41. Rd4 1-0

[Event "21st Sants Open 2019"]
[Site "Cotxeres de Sants"]
[Date "2019.08.27"]
[Round "5.20"]
[White "Serentill Tost, Eduard"]
[Black "Miro Arbelaes, Aleix"]
[Result "0-1"]
[ECO "B23"]
[WhiteElo "1621"]
[BlackElo "1467"]
[Annotator "NA"]
[PlyCount "28"]
[EventDate "2019.08.22"]
[EventType "swiss"]
[EventCountry "ESP"]
[SourceTitle "playchess.com"]
[Source "ChessBase"]
[SourceQuality "1"]
[TimeControl "40/5400+30:1800+30"]

1. e4 c5 {[%emt 0:03:21]} 2. Nc3 {[%emt 0:00:00]} Nc6 {[%emt 0:02:04]} 3. f4 {[%emt 0:00:19]} g6 4. Nf3 {[%emt 0:00:10]} Bg7 {[%emt 0:02:35]} 5. Bc4 {[%emt 0:00:34]} e6 {[%emt 0:04:54]} 6. d3 {[%emt 0:01:05]} Nge7 {[%emt 0:04:08]} 7. a3 {[%emt 0:06:04]} d5 {[%emt 0:02:15]} 8. exd5 {[%emt 0:03:10]} exd5 {[%emt 0:03:11]} 9. Bb3 {[%emt 0:03:50]} Bg4 {[%emt 0:03:39]} 10. h3 {[%emt 0:03:15]} Bxf3 {[%emt 0:04:28]} 11. Qxf3 {[%emt 0:02:10]} Nd4 {[%emt 0:05:01]} 12. Ba4+ {[%emt 0:07:53]} Nec6 {[%emt 0:02:33]} 13. Qxd5 {[%emt 0:02:37]} Nxc2+ 14. Kd2 Bxc3+ {[%emt 0:00:51] Ke1 Bg7+ Kf2 Nxa1 Bxc6+ bxc6 Qxc6+ Kf8 Qxc5+ Qe7} 0-1

[Event "21st Sants Open 2019"]
[Site "Cotxeres de Sants"]
[Date "2019.08.28"]
[Round "6.2"]
[White "Vaibhav, Suri"]
[Black "Antal, Gergely"]
[Result "1/2-1/2"]
[ECO "B12"]
[WhiteElo "2591"]
[BlackElo "2549"]
[Annotator "ChessBase"]
[PlyCount "110"]
[EventDate "2019.08.22"]
[EventType "swiss"]
[EventCountry "ESP"]
[SourceTitle "playchess.com"]
[Source "ChessBase"]
[SourceQuality "1"]
[TimeControl "40/5400+30:1800+30"]

1. e4 {[%emt 0:00:00]} c6 {[%emt 0:00:00]} 2. d4 {[%emt 0:00:03]} d5 {[%emt 0:00:00]} 3. e5 {[%emt 0:00:07]} c5 {[%emt 0:00:33]} 4. Nf3 {[%emt 0:01:48]} cxd4 {[%emt 0:04:40]} 5. Nxd4 {[%emt 0:00:10]} Nc6 {[%emt 0:01:18]} 6. Nxc6 {[%emt 0:00:20]} bxc6 {[%emt 0:00:05]} 7. Bd3 {[%emt 0:00:05]} e6 {[%emt 0:08:08]} 8. O-O {[%emt 0:00:12]} Ne7 {[%emt 0:00:23]} 9. Re1 {[%emt 0:05:36]} Ng6 {[%emt 0:00:40]} 10. Nd2 {[%emt 0:01:14]} Be7 {[%emt 0:04:47]} 11. Qg4 {[%emt 0:04:04]} Qb6 {[%emt 0:11:45]} 12. c3 {[%emt 0:10:47]} Ba6 {[%emt 0:09:17]} 13. Bc2 {[%emt 0:03:22]} h5 {[%emt 0:05:59]} 14. Qg3 {[%emt 0:02:55]} h4 {[%emt 0:00:15]} 15. Qg4 {[%emt 0:11:45]} Bc5 {[%emt 0:01:31]} 16. Qf3 {[%emt 0:00:19]} h3 {[%emt 0:08:19]} 17. b4 {[%emt 0:05:27]} Be7 {[%emt 0:01:58]} 18. g3 {[%emt 0:00:15]} Qc7 {[%emt 0:01:26]} 19. Bxg6 {[%emt 0:14:13]} fxg6 {[%emt 0:00:02]} 20. Nb3 {[%emt 0:00:06]} c5 {[%emt 0:01:51]} 21. bxc5 {[%emt 0:02:12]} Bxc5 {[%emt 0:01:40]} 22. Qg4 {[%emt 0:02:08]} Kf7 {[%emt 0:01:19]} 23. Be3 {[%emt 0:02:14]} Bf8 {[%emt 0:04:34]} 24. Nd4 {[%emt 0:07:44]} Re8 {[%emt 0:00:06]} 25. Nf3 {[%emt 0:00:12]} Be7 {[%emt 0:02:43]} 26. Bg5 {[%emt 0:09:07]} Qc4 {[%emt 0:02:25]} 27. Nd4 {[%emt 0:03:41]} Bc5 {[%emt 0:01:38]} 28. Re3 {[%emt 0:02:44]} Rh5 {[%emt 0:03:13]} 29. Rf3+ {[%emt 0:02:41]} Kg8 {[%emt 0:00:02]} 30. Be3 {[%emt 0:00:16]} Kh7 {[%emt 0:00:53]} 31. Rf7 {[%emt 0:04:01]} Bxd4 {[%emt 0:08:41]} 32. Bxd4 {[%emt 0:00:57]} Qd3 {[%emt 0:04:16]} 33. Qd1 {[%emt 0:03:08]} Rf5 {[%emt 0:06:54]} 34. Qxd3 {[%emt 0:00:29]} Bxd3 {[%emt 0:00:03]} 35. Rxa7 {[%emt 0:00:55]} Rff8 {[%emt 0:00:13]} 36. Bc5 {[%emt 0:01:53]} Ra8 {[%emt 0:00:30]} 37. Rxa8 {[%emt 0:00:27]} Rxa8 {[%emt 0:00:05]} 38. f3 {[%emt 0:00:15]} Rb8 {[%emt 0:01:32]} 39. Bb4 {[%emt 0:00:13]} d4 {[%emt 0:00:25]} 40. Kf2 {[%emt 0:00:00]} dxc3 {[%emt 0:00:00]} 41. Bxc3 {[%emt 0:04:25]} Rc8 {[%emt 0:01:13]} 42. Bd2 {[%emt 0:00:43]} Rc5 {[%emt 0:00:37]} 43. f4 {[%emt 0:14:43]} g5 {[%emt 0:01:12]} 44. fxg5 {[%emt 0:03:49]} Rxe5 {[%emt 0:00:18]} 45. Re1 {[%emt 0:00:31]} Rxe1 {[%emt 0:04:14]} 46. Kxe1 {[%emt 0:02:11]} Kg6 {[%emt 0:00:06]} 47. g4 {[%emt 0:00:10]} Kf7 {[%emt 0:00:04]} 48. a4 {[%emt 0:03:46]} g6 {[%emt 0:00:23]} 49. Kf2 {[%emt 0:00:35]} Ke7 {[%emt 0:00:12]} 50. Ke3 {[%emt 0:00:28]} Bf1 {[%emt 0:00:56]} 51. Kd4 {[%emt 0:00:04]} Kd6 {[%emt 0:00:04]} 52. a5 {[%emt 0:00:08]} Kc6 {[%emt 0:00:11]} 53. Ke5 {[%emt 0:00:03]} Kb7 {[%emt 0:00:05]} 54. Kf6 {[%emt 0:00:17]} Bd3 {[%emt 0:00:04]} 55. Kxe6 {[%emt 0:00:02]} Ka6 {[%emt 0:00:04]} 1/2-1/2

[Event "21st Sants Open 2019"]
[Site "Cotxeres de Sants"]
[Date "2019.08.28"]
[Round "6.3"]
[White "Neef, Maximilian"]
[Black "Idani, Pouya"]
[Result "1-0"]
[ECO "A04"]
[WhiteElo "2481"]
[BlackElo "2581"]
[Annotator "ChessBase"]
[PlyCount "57"]
[EventDate "2019.08.22"]
[EventType "swiss"]
[EventCountry "ESP"]
[SourceTitle "playchess.com"]
[Source "ChessBase"]
[SourceQuality "1"]
[TimeControl "40/5400+30:1800+30"]

1. Nf3 {[%emt 0:00:00]} d6 {[%emt 0:00:00]} 2. d4 {[%emt 0:00:00]} Nf6 {[%emt 0:00:00]} 3. g3 {[%emt 0:00:37]} g6 {[%emt 0:00:00]} 4. Bg2 {[%emt 0:00:16]} Bg7 {[%emt 0:00:00]} 5. O-O {[%emt 0:00:22]} O-O {[%emt 0:00:00]} 6. b3 {[%emt 0:00:23]} b5 {[%emt 0:00:01]} 7. Ne1 {[%emt 0:04:40]} c6 {[%emt 0:00:16]} 8. Bb2 {[%emt 0:00:13]} Qc7 {[%emt 0:02:57]} 9. Nd3 {[%emt 0:00:32]} Bb7 {[%emt 0:04:31]} 10. Nd2 {[%emt 0:05:15]} Nbd7 {[%emt 0:03:42]} 11. c4 {[%emt 0:04:16]} bxc4 {[%emt 0:00:29]} 12. Nxc4 {[%emt 0:02:40]} Rac8 {[%emt 0:00:15]} 13. e4 {[%emt 0:20:29]} Nxe4 {[%emt 0:03:56]} 14. Bxe4 {[%emt 0:00:07]} d5 {[%emt 0:00:03]} 15. Bg2 {[%emt 0:00:17]} dxc4 {[%emt 0:00:10]} 16. bxc4 {[%emt 0:00:06]} Rfd8 {[%emt 0:06:12]} 17. Qc2 {[%emt 0:01:55]} e6 {[%emt 0:08:11]} 18. Rfd1 {[%emt 0:06:55]} c5 {[%emt 0:02:00]} 19. d5 {[%emt 0:03:10]} exd5 {[%emt 0:16:50]} 20. cxd5 {[%emt 0:03:05]} Bxb2 {[%emt 0:02:42]} 21. Qxb2 {[%emt 0:04:53]} Qb6 {[%emt 0:05:15]} 22. Qc3 {[%emt 0:03:31]} Qd6 {[%emt 0:00:59]} 23. Rac1 {[%emt 0:03:23]} Ba6 {[%emt 0:07:04]} 24. Nf4 {[%emt 0:01:21]} Nb6 {[%emt 0:01:07]} 25. h4 {[%emt 0:02:27]} Bb7 {[%emt 0:03:37]} 26. Bh3 {[%emt 0:08:41]} Rc7 {[%emt 0:00:05]} 27. Nxg6 fxg6 28. Be6+ {[%emt 0:04:00]} Rf7 {[%emt 0:00:08]} 29. Qf6 {[%emt 0:01:11]} 1-0

[Event "21st Sants Open 2019"]
[Site "Cotxeres de Sants"]
[Date "2019.08.28"]
[Round "6.5"]
[White "Santos Latasa, Jaime"]
[Black "Salinas Herrera, Pablo"]
[Result "0-1"]
[ECO "D11"]
[WhiteElo "2586"]
[BlackElo "2506"]
[Annotator "ChessBase"]
[PlyCount "92"]
[EventDate "2019.08.22"]
[EventType "swiss"]
[EventCountry "ESP"]
[SourceTitle "playchess.com"]
[Source "ChessBase"]
[SourceQuality "1"]
[TimeControl "40/5400+30:1800+30"]

1. d4 d5 2. c4 c6 3. Nf3 Nf6 4. e3 e6 5. b3 Nbd7 6. Bb2 Be7 7. Bd3 b6 8. O-O Bb7 9. Nc3 O-O 10. Qe2 Qc7 11. Rac1 Rad8 12. cxd5 exd5 13. Ba6 Ba8 14. Rc2 Qb8 15. Bd3 Bd6 16. Bf5 Rfe8 17. g3 Bb7 18. Rfc1 c5 19. Bh3 a6 20. Bg2 Qa8 21. a4 Nf8 22. Nb1 Ne4 23. a5 cxd4 24. Nxd4 bxa5 25. Nd2 Ne6 26. Nxe4 dxe4 27. Nxe6 Rxe6 28. Qg4 Bf8 29. Rc7 Bd5 30. Qf5 Ree8 31. Bc3 Bxb3 32. Qxa5 Rd5 33. Qa1 a5 34. Bd4 a4 35. Bh3 Red8 36. Qb1 Rxd4 37. exd4 Rxd4 38. Qb2 Qd8 39. Rc8 Qd6 40. Bf1 Be6 41. R8c6 Qd8 42. Ra6 a3 43. Qb7 Rb4 44. Qc6 a2 45. Ra8 Rb8 46. Ra6 Rc8 0-1

[Event "21st Sants Open 2019"]
[Site "Cotxeres de Sants"]
[Date "2019.08.28"]
[Round "6.8"]
[White "Berdayes Ason, Dylan Isidro"]
[Black "Sardana, Rishi"]
[Result "0-1"]
[ECO "B51"]
[WhiteElo "2458"]
[BlackElo "2410"]
[Annotator "ChessBase"]
[PlyCount "76"]
[EventDate "2019.08.22"]
[EventType "swiss"]
[EventCountry "ESP"]
[SourceTitle "playchess.com"]
[Source "ChessBase"]
[SourceQuality "1"]
[TimeControl "40/5400+30:1800+30"]

1. e4 {[%emt 0:06:57]} c5 {[%emt 0:00:00]} 2. Nf3 {[%emt 0:00:17]} d6 {[%emt 0:00:00]} 3. Bb5+ {[%emt 0:00:05]} Nd7 {[%emt 0:00:00]} 4. O-O {[%emt 0:00:07]} a6 {[%emt 0:00:10]} 5. Bd3 {[%emt 0:00:04]} Ngf6 {[%emt 0:00:06]} 6. Re1 {[%emt 0:00:06]} g6 {[%emt 0:00:14]} 7. c3 {[%emt 0:00:04]} Bg7 {[%emt 0:01:27]} 8. Bc2 {[%emt 0:00:08]} O-O {[%emt 0:00:21]} 9. d4 {[%emt 0:00:03]} e5 {[%emt 0:00:07]} 10. d5 {[%emt 0:00:51]} b5 {[%emt 0:00:56]} 11. a4 {[%emt 0:00:27]} Nb6 {[%emt 0:05:17]} 12. b3 {[%emt 0:00:34]} Bd7 {[%emt 0:00:10]} 13. a5 {[%emt 0:00:12]} Nc8 {[%emt 0:00:06]} 14. c4 {[%emt 0:00:01]} Ne7 {[%emt 0:01:59]} 15. Nbd2 {[%emt 0:02:54]} b4 {[%emt 0:03:15]} 16. Nf1 {[%emt 0:02:40]} Ne8 {[%emt 0:00:33]} 17. Ra2 {[%emt 0:01:25]} f5 {[%emt 0:06:05]} 18. exf5 {[%emt 0:01:56]} gxf5 {[%emt 0:04:54]} 19. Ng3 {[%emt 0:02:25]} Ng6 {[%emt 0:19:16]} 20. Ng5 {[%emt 0:09:15]} Nf4 {[%emt 0:07:49]} 21. Bxf4 {[%emt 0:01:55]} exf4 {[%emt 0:01:08]} 22. Ne6 {[%emt 0:00:01]} Bxe6 {[%emt 0:07:46]} 23. dxe6 {[%emt 0:03:02]} Qg5 {[%emt 0:03:40]} 24. e7 {[%emt 0:14:05]} Rf7 {[%emt 0:01:24]} 25. Qd5 {[%emt 0:00:53]} fxg3 {[%emt 0:08:09]} 26. Qxa8 {[%emt 0:00:03]} gxf2+ {[%emt 0:01:35]} 27. Kxf2 {[%emt 0:00:06]} Bd4+ {[%emt 0:02:42]} 28. Kf1 {[%emt 0:00:02]} Qf4+ {[%emt 0:01:41]} 29. Qf3 {[%emt 0:00:03]} Qxh2 {[%emt 0:00:13]} 30. Re6 {[%emt 0:00:38]} Rg7 {[%emt 0:06:16]} 31. Be4 {[%emt 0:03:38]} Rg3 {[%emt 0:02:34]} 32. Bd5 {[%emt 0:02:13]} Rxf3+ {[%emt 0:00:29]} 33. gxf3 {[%emt 0:00:02]} Qg1+ {[%emt 0:00:38]} 34. Ke2 {[%emt 0:00:02]} Kh8 {[%emt 0:02:05]} 35. Rd2 {[%emt 0:00:03]} Bc3 {[%emt 0:02:31]} 36. Rd1 {[%emt 0:00:21]} Qh2+ {[%emt 0:00:27]} 37. Kd3 {[%emt 0:00:48]} Qb2 {[%emt 0:01:06]} 38. Rg1 {[%emt 0:00:23]} Qd2# {[%emt 0:00:12]} 0-1

[Event "21st Sants Open 2019"]
[Site "Cotxeres de Sants"]
[Date "2019.08.28"]
[Round "6.10"]
[White "Lagunow, Raphael"]
[Black "Sanchez, Sebastian Felipe"]
[Result "1-0"]
[ECO "C18"]
[WhiteElo "2431"]
[BlackElo "2405"]
[Annotator "NA"]
[PlyCount "109"]
[EventDate "2019.08.22"]
[EventType "swiss"]
[EventCountry "ESP"]
[SourceTitle "playchess.com"]
[Source "ChessBase"]
[SourceQuality "1"]
[TimeControl "40/5400+30:1800+30"]

1. e4 {[%emt 0:00:00]} e6 {[%emt 0:21:48]} 2. d4 {[%emt 0:00:30]} d5 {[%emt 0:00:04]} 3. Nc3 {[%emt 0:00:06]} Bb4 {[%emt 0:00:07]} 4. e5 {[%emt 0:00:12]} c5 {[%emt 0:00:03]} 5. a3 {[%emt 0:00:05]} Bxc3+ {[%emt 0:00:04]} 6. bxc3 {[%emt 0:00:05]} Ne7 {[%emt 0:00:02]} 7. Qg4 {[%emt 0:00:18]} O-O {[%emt 0:00:05]} 8. Bd3 {[%emt 0:01:33]} Nbc6 {[%emt 0:00:25]} 9. Bg5 {[%emt 0:01:10]} Qa5 {[%emt 0:02:36]} 10. Ne2 {[%emt 0:06:15]} cxd4 {[%emt 0:10:18]} 11. f4 {[%emt 0:03:03]} Ng6 {[%emt 0:07:51]} 12. Qh5 {[%emt 0:23:40]} Qc7 {[%emt 0:15:35]} 13. O-O {[%emt 0:07:20]} h6 {[%emt 0:00:05]} 14. Bxh6 {[%emt 0:03:08]} gxh6 {[%emt 0:00:12]} 15. Qxh6 {[%emt 0:01:03]} Qe7 {[%emt 0:03:50]} 16. Ng3 {[%emt 0:01:59]} f5 {[%emt 0:01:10]} 17. Qxg6+ {[%emt 0:16:12]} Qg7 {[%emt 0:00:11]} 18. Qxg7+ {[%emt 0:00:26]} Kxg7 {[%emt 0:00:03]} 19. cxd4 {[%emt 0:04:12]} Nxd4 {[%emt 0:00:03]} 20. Nh5+ {[%emt 0:02:05]} Kf7 {[%emt 0:00:54]} 21. Nf6 {[%emt 0:00:07]} b6 {[%emt 0:00:14]} 22. Kf2 {[%emt 0:00:26]} Rh8 {[%emt 0:00:43]} 23. Rh1 {[%emt 0:03:05]} Bb7 {[%emt 0:00:04]} 24. h4 {[%emt 0:08:28]} Rac8 {[%emt 0:00:10]} 25. Rac1 {[%emt 0:00:18]} Rc3 {[%emt 0:01:07]} 26. h5 {[%emt 0:03:43]} Rxa3 {[%emt 0:10:15]} 27. h6 {[%emt 0:00:02]} Ra2 {[%emt 0:00:05]} 28. Ra1 {[%emt 0:05:11]} Rxa1 {[%emt 0:00:04]} 29. Rxa1 {[%emt 0:00:01]} a6 {[%emt 0:00:03]} 30. h7 {[%emt 0:03:05]} b5 {[%emt 0:00:12]} 31. g4 {[%emt 0:04:10]} Bc8 {[%emt 0:00:24]} 32. gxf5 {[%emt 0:02:01]} exf5 {[%emt 0:00:04]} 33. Rg1 {[%emt 0:00:53]} Be6 {[%emt 0:00:11]} 34. Ra1 {[%emt 0:00:26]} Bc8 {[%emt 0:00:33]} 35. Ke3 {[%emt 0:00:15]} Nc6 {[%emt 0:00:13]} 36. c3 {[%emt 0:00:03]} Ne7 {[%emt 0:02:09]} 37. Rg1 {[%emt 0:00:06]} Be6 {[%emt 0:06:04]} 38. Rg5 {[%emt 0:00:06]} Kf8 {[%emt 0:01:21]} 39. Kd4 {[%emt 0:00:42]} Kf7 {[%emt 0:00:05]} 40. Be2 {[%emt 0:00:00]} Kf8 {[%emt 0:00:00]} 41. Kc5 {[%emt 0:05:16]} Bf7 {[%emt 0:08:27]} 42. Bh5 {[%emt 0:06:00]} Bxh5 {[%emt 0:05:53]} 43. Rxh5 {[%emt 0:00:05]} Kg7 {[%emt 0:00:37]} 44. Nxd5 {[%emt 0:10:55]} Rc8+ {[%emt 0:01:40]} 45. Kd6 {[%emt 0:01:24]} Ng6 {[%emt 0:00:36]} 46. Rxf5 {[%emt 0:01:02]} Kxh7 {[%emt 0:00:15]} 47. e6 {[%emt 0:00:47]} a5 {[%emt 0:01:02]} 48. Rf7+ {[%emt 0:01:08]} Kh6 {[%emt 0:00:05]} 49. f5 {[%emt 0:00:33]} Nh4 {[%emt 0:00:23]} 50. e7 {[%emt 0:00:31]} b4 {[%emt 0:00:43]} 51. Rf8 {[%emt 0:02:42]} Nxf5+ {[%emt 0:00:23]} 52. Rxf5 {[%emt 0:00:05]} b3 {[%emt 0:00:59]} 53. Rf8 {[%emt 0:00:11]} b2 {[%emt 0:00:23]} 54. Rxc8 {[%emt 0:00:04]} b1=Q {[%emt 0:00:06]} 55. e8=Q {[%emt 0:00:05]} 1-0

[Event "21st Sants Open 2019"]
[Site "Cotxeres de Sants"]
[Date "2019.08.28"]
[Round "6.15"]
[White "Rios Torondell, Jaume"]
[Black "Romero Moreno, Felix"]
[Result "0-1"]
[ECO "B10"]
[WhiteElo "1891"]
[BlackElo "1914"]
[Annotator "NA"]
[PlyCount "104"]
[EventDate "2019.08.22"]
[EventType "swiss"]
[EventCountry "ESP"]
[SourceTitle "playchess.com"]
[Source "ChessBase"]
[SourceQuality "1"]
[TimeControl "40/5400+30:1800+30"]

1. e4 {[%emt 0:03:36]} c6 {[%emt 0:00:00]} 2. Ne2 {[%emt 0:02:33]} d5 {[%emt 0:00:39]} 3. e5 {[%emt 0:00:28]} Bf5 {[%emt 0:01:48]} 4. Ng3 {[%emt 0:00:59]} Bg6 {[%emt 0:02:18]} 5. h4 {[%emt 0:00:31]} h5 {[%emt 0:02:37]} 6. Be2 {[%emt 0:11:03]} e6 {[%emt 0:00:39]} 7. Nxh5 {[%emt 0:15:08]} Bxh5 {[%emt 0:07:23]} 8. Bxh5 {[%emt 0:00:07]} g6 {[%emt 0:00:47]} 9. Bf3 {[%emt 0:09:43]} Rxh4 {[%emt 0:01:07]} 10. g3 {[%emt 0:06:14]} Rxh1+ {[%emt 0:01:49]} 11. Bxh1 {[%emt 0:00:01]} Nd7 12. d4 {[%emt 0:09:35]} Ne7 {[%emt 0:07:33]} 13. Nd2 {[%emt 0:08:27]} Nf5 {[%emt 0:04:52]} 14. Nf3 {[%emt 0:01:12]} c5 {[%emt 0:07:20]} 15. c3 {[%emt 0:02:40]} Be7 {[%emt 0:02:47]} 16. Bg2 {[%emt 0:07:58]} Qb6 {[%emt 0:02:08]} 17. Bh3 {[%emt 0:00:28]} O-O-O {[%emt 0:02:44]} 18. Bxf5 {[%emt 0:01:05]} gxf5 {[%emt 0:00:30]} 19. Qb3 {[%emt 0:03:08]} Qa6 {[%emt 0:12:44]} 20. Qc2 {[%emt 0:02:34]} Rh8 {[%emt 0:00:45]} 21. Qe2 {[%emt 0:02:08]} Rh1+ {[%emt 0:02:25]} 22. Kd2 {[%emt 0:00:01]} Qa5 {[%emt 0:07:33]} 23. dxc5 {[%emt 0:07:25]} Nxc5 {[%emt 0:05:19]} 24. Nd4 {[%emt 0:00:01]} Ne4+ {[%emt 0:01:11]} 25. Kc2 {[%emt 0:01:23]} a6 {[%emt 0:09:57]} 26. f3 {[%emt 0:00:34]} Nxg3 {[%emt 0:05:57]} 27. Qg2 {[%emt 0:00:01]} Bh4 {[%emt 0:05:40]} 28. Ne2 {[%emt 0:00:25]} Re1 {[%emt 0:02:40]} 29. Nxg3 {[%emt 0:00:45]} Qb5 {[%emt 0:00:57]} 30. Kd2 {[%emt 0:00:49]} Bxg3 {[%emt 0:00:47]} 31. a4 {[%emt 0:00:00]} Qf1 {[%emt 0:01:13]} 32. Qxf1 {[%emt 0:01:36]} Rxf1 {[%emt 0:00:01]} 33. b3 {[%emt 0:01:55]} Rxf3 {[%emt 0:00:25]} 34. Ba3 {[%emt 0:00:18]} Bxe5 {[%emt 0:00:20]} 35. Bb4 {[%emt 0:00:18]} Rh3 {[%emt 0:00:24]} 36. Rg1 {[%emt 0:00:17]} Bg3 {[%emt 0:00:34]} 37. c4 {[%emt 0:00:37]} dxc4 {[%emt 0:00:35]} 38. bxc4 {[%emt 0:00:37]} Bf4+ {[%emt 0:00:12]} 39. Kc2 {[%emt 0:00:18]} Bg3 {[%emt 0:00:32]} 40. Rd1 {[%emt 0:00:00]} Rh2+ {[%emt 0:00:00]} 41. Kb3 {[%emt 0:07:00]} Bc7 {[%emt 0:01:37]} 42. c5 {[%emt 0:01:27]} f4 {[%emt 0:00:34]} 43. Rg1 {[%emt 0:01:59]} Rh3+ {[%emt 0:00:19]} 44. Kc4 {[%emt 0:00:10]} Rg3 {[%emt 0:00:35]} 45. Rh1 {[%emt 0:00:01]} Be5 {[%emt 0:05:27]} 46. Rh7 {[%emt 0:02:27]} Bg7 {[%emt 0:00:39]} 47. c6 {[%emt 0:00:45]} bxc6 {[%emt 0:02:48]} 48. Bd6 {[%emt 0:00:02]} Rg4 {[%emt 0:01:13]} 49. Kc5 {[%emt 0:00:31]} Kd7 {[%emt 0:01:05]} 50. Bb8 {[%emt 0:02:43]} f3 {[%emt 0:00:51]} 51. Be5 {[%emt 0:01:18]} f2 {[%emt 0:02:44]} 52. Rxg7 {[%emt 0:01:38]} Rxg7 {[%emt 0:00:16]} 0-1

[Event "21st Sants Open 2019"]
[Site "Cotxeres de Sants"]
[Date "2019.08.28"]
[Round "6.17"]
[White "Rodriguez Regull, German"]
[Black "Abreu Flores, Daniel"]
[Result "1/2-1/2"]
[ECO "A05"]
[WhiteElo "1944"]
[BlackElo "1897"]
[Annotator "NA"]
[PlyCount "87"]
[EventDate "2019.08.22"]
[EventType "swiss"]
[EventCountry "ESP"]
[SourceTitle "playchess.com"]
[Source "ChessBase"]
[SourceQuality "1"]
[TimeControl "40/5400+30:1800+30"]

1. Nf3 {[%emt 0:01:47]} Nf6 {[%emt 0:00:02]} 2. b4 {[%emt 0:00:40]} e6 {[%emt 0:01:53]} 3. a3 {[%emt 0:00:15]} d5 {[%emt 0:01:39]} 4. Bb2 {[%emt 0:00:37]} Bd6 {[%emt 0:00:41]} 5. e3 {[%emt 0:00:24]} Nbd7 {[%emt 0:02:16]} 6. d4 {[%emt 0:00:25]} O-O {[%emt 0:02:23]} 7. Nbd2 {[%emt 0:00:25]} c6 {[%emt 0:03:14]} 8. c4 {[%emt 0:00:18]} Bb8 {[%emt 0:01:41]} 9. Bd3 {[%emt 0:00:22]} a5 {[%emt 0:13:06]} 10. b5 {[%emt 0:07:27]} e5 {[%emt 0:13:46]} 11. cxd5 {[%emt 0:02:29]} cxd5 {[%emt 0:00:33]} 12. dxe5 {[%emt 0:01:03]} Ng4 {[%emt 0:00:43]} 13. Qc2 {[%emt 0:01:11]} h6 {[%emt 0:07:30]} 14. e6 {[%emt 0:01:36]} fxe6 {[%emt 0:04:12]} 15. Bh7+ {[%emt 0:01:46]} Kh8 {[%emt 0:04:37]} 16. Qc3 {[%emt 0:04:51]} e5 {[%emt 0:08:11]} 17. Bc2 {[%emt 0:00:53]} Qe7 {[%emt 0:11:23]} 18. h3 {[%emt 0:00:22]} Nxf2 {[%emt 0:01:08]} 19. Rf1 {[%emt 0:02:25]} d4 {[%emt 0:04:11]} 20. Qb3 {[%emt 0:00:23]} a4 {[%emt 0:00:12]} 21. Qc4 {[%emt 0:01:56]} Nb6 {[%emt 0:05:24]} 22. Qe2 {[%emt 0:00:05]} d3 {[%emt 0:00:02]} 23. Bxd3 {[%emt 0:00:52]} Nxd3+ {[%emt 0:00:06]} 24. Qxd3 {[%emt 0:00:21]} e4 {[%emt 0:03:06]} 25. Qxe4 {[%emt 0:01:25]} Qxe4 {[%emt 0:05:57]} 26. Nxe4 {[%emt 0:00:12]} Re8 {[%emt 0:02:18]} 27. Nfd2 {[%emt 0:00:30]} Nd5 {[%emt 0:01:21]} 28. Bd4 {[%emt 0:01:02]} Bd7 {[%emt 0:01:06]} 29. Rf7 {[%emt 0:00:44]} Bxb5 {[%emt 0:00:55]} 30. Rxg7 {[%emt 0:00:52]} Be5 {[%emt 0:00:25]} 31. Bxe5 {[%emt 0:02:46]} Rxe5 {[%emt 0:00:07]} 32. Rxb7 {[%emt 0:08:56]} Bc6 {[%emt 0:00:35]} 33. Rb2 {[%emt 0:01:02]} Nxe3 {[%emt 0:00:32]} 34. Kf2 {[%emt 0:01:01]} Bxe4 {[%emt 0:01:01]} 35. Kxe3 {[%emt 0:00:05]} Bxg2+ {[%emt 0:00:09]} 36. Kf4 {[%emt 0:03:50]} Re6 {[%emt 0:00:15]} 37. Nc4 {[%emt 0:04:31]} Re4+ {[%emt 0:01:03]} 38. Kg3 {[%emt 0:00:26]} Bxh3 {[%emt 0:00:38]} 39. Nb6 {[%emt 0:01:04]} Re3+ {[%emt 0:00:27]} 40. Kf2 {[%emt 0:00:00]} Rae8 {[%emt 0:00:00]} 41. Nxa4 {[%emt 0:00:32]} Bd7 42. Nc5 Bc6 43. Rb3 Re2+ 44. Kf1 1/2-1/2